[Event "ROU-ch Men 2018"]
[Site "Olanesti"]
[Date "2018.05.17"]
[Round "4"]
[White "Stoleriu, George"]
[Black "Craciun, Ovidiu"]
[Result "1-0"]
[ECO "C77"]
[WhiteElo "2333"]
[BlackElo "1931"]
[Annotator "NA"]
[PlyCount "89"]
[EventDate "2018.??.??"]
[EventType "swiss"]
[EventCountry "ROU"]
[SourceTitle "playchess.com"]
[Source "ChessBase"]
[SourceQuality "1"]
[TimeControl "40/5400+30:1800+30"]

1. e4 {[%emt 0:00:00]} e5 {[%emt 0:00:46]} 2. Nf3 {[%emt 0:00:00]} Nc6 {[%emt 0:00:06]} 3. Bb5 {[%emt 0:00:00]} a6 {[%emt 0:00:07]} 4. Ba4 {[%emt 0:00:00]} Nf6 {[%emt 0:00:24]} 5. d3 {[%emt 0:00:00]} b5 {[%emt 0:03:41]} 6. Bb3 {[%emt 0:00:00]} Bc5 {[%emt 0:00:13]} 7. O-O {[%emt 0:00:00]} h6 {[%emt 0:01:11]} 8. Re1 {[%emt 0:00:41] C78: Ruy Lopez: Archangelsk and Möller Defences} O-O {[%emt 0:03:25]} 9. Nbd2 {[%emt 0:00:31]} d6 {[%emt 0:04:07]} 10. c3 {[%emt 0:00:05]} Be6 {[%emt 0:05:16]} (10... Ne7 11. a4 b4 12. d4 bxc3 13. bxc3 exd4 14. cxd4 Bb4 15. Re3 Ng6 16. h3 a5 {0-1 (65) Zhigalko,S (2638)-Giri,A (2762) Heraklio 2017}) 11. Nf1 {[%emt 0:01:18]} Ng4 $146 {[%emt 0:06:46]} ({Predecessor:} 11... Bxb3 12. axb3 d5 13. b4 Bb6 14. Qe2 Ng4 15. Ne3 Nxe3 16. Bxe3 Bxe3 17. Qxe3 {1-0 (43) Fercec,N (2450)-Licardo,R (2169) Porec 2015}) 12. d4 {[%emt 0:07:37]} exd4 {[%emt 0:02:33]} 13. cxd4 {[%emt 0:00:30]} Bxb3 {[%emt 0:00:18]} 14. axb3 {[%emt 0:00:07]} Bb6 {[%emt 0:05:40]} 15. h3 {[%emt 0:02:31]} Nf6 {[%emt 0:01:22]} 16. d5 {[%emt 0:01:10]} Ne7 {[%emt 0:04:15]} 17. Be3 {[%emt 0:01:00]} Nd7 {[%emt 0:00:45]} 18. Bxb6 {[%emt 0:03:01]} Nxb6 {[%emt 0:00:46]} 19. Nd4 {[%emt 0:00:04]} Qd7 {[%emt 0:04:07]} 20. Ne3 {[%emt 0:05:58]} c5 {[%emt 0:04:31]} 21. dxc6 {[%emt 0:00:12]} Nxc6 {[%emt 0:00:11]} 22. Nxc6 {[%emt 0:00:16]} Qxc6 {[%emt 0:00:07]} 23. Nf5 {[%emt 0:00:58]} Kh7 {[%emt 0:06:44]} 24. Qd4 {[%emt 0:03:25]} f6 {[%emt 0:01:40]} 25. Rac1 {[%emt 0:00:10]} Qb7 {[%emt 0:01:29]} 26. Nxd6 {[%emt 0:00:55]} Rad8 {[%emt 0:00:49]} 27. Red1 {[%emt 0:00:51]} Qb8 {[%emt 0:02:34]} 28. Qc5 {[%emt 0:01:42]} Nc8 {[%emt 0:05:59]} 29. Nf5 {[%emt 0:02:10]} Qf4 {[%emt 0:02:49]} 30. Qe3 {[%emt 0:06:21]} (30. Qc6 $18) 30... Qe5 {[%emt 0:06:41]} 31. Qg3 {[%emt 0:05:07]} Qxg3 {[%emt 0:02:48]} 32. Nxg3 {[%emt 0:00:15]} Rxd1+ {[%emt 0:01:14]} 33. Rxd1 {[%emt 0:00:05]} Rf7 {[%emt 0:00:13]} 34. Rc1 {[%emt 0:00:42]} Nb6 {[%emt 0:03:50]} 35. Rc6 {[%emt 0:00:05]} Rb7 {[%emt 0:00:09]} 36. Nf5 {[%emt 0:00:09]} g6 {[%emt 0:10:47]} 37. Nd6 {[%emt 0:03:58]} ({Schlechter ist} 37. Rxf6 gxf5 38. Rxf5 Nd7 $11) 37... Rb8 {[%emt 0:00:13]} 38. f4 {[%emt 0:01:30]} Kg8 $18 {[%emt 0:01:20]} 39. e5 {[%emt 0:03:40]} fxe5 {[%emt 0:00:26]} 40. fxe5 {[%emt 0:00:00]} a5 {[%emt 0:03:01]} 41. Ne4 {[%emt 0:03:50]} Kg7 {[%emt 0:01:38]} 42. Rc7+ {[%emt 0:00:17]} Kf8 {[%emt 0:00:13]} 43. Nf6 {[%emt 0:00:25]} Rd8 {[%emt 0:03:29]} 44. e6 {[%emt 0:00:12]} Nd5 {[%emt 0:00:41]} 45. Rf7# {[%emt 0:00:04]} 1-0

[Event "ROU-ch Men 2018"]
[Site "Olanesti"]
[Date "2018.05.17"]
[Round "4"]
[White "Banzea, Alexandru-Bogdan"]
[Black "Horvat, Dan-Sebastian"]
[Result "1/2-1/2"]
[ECO "B51"]
[WhiteElo "2325"]
[BlackElo "2152"]
[Annotator "NA"]
[PlyCount "92"]
[EventDate "2018.??.??"]
[EventType "swiss"]
[EventCountry "ROU"]
[SourceTitle "playchess.com"]
[Source "ChessBase"]
[SourceQuality "1"]
[TimeControl "40/5400+30:1800+30"]

1. e4 {[%emt 0:00:00]} c5 {[%emt 0:05:00]} 2. Nf3 {[%emt 0:00:00]} d6 {[%emt 0:00:12]} 3. Bb5+ {[%emt 0:00:51]} Nc6 {[%emt 0:02:04]} 4. O-O {[%emt 0:00:16]} Bd7 {[%emt 0:02:50]} 5. Re1 {[%emt 0:00:15]} Nf6 {[%emt 0:00:51]} 6. c3 {[%emt 0:00:34]} a6 {[%emt 0:01:20]} 7. Bf1 {[%emt 0:00:21]} e5 {[%emt 0:10:24]} 8. h3 {[%emt 0:00:58]} Be7 {[%emt 0:00:39]} 9. d4 {[%emt 0:00:25]} Qc7 {[%emt 0:02:36] LiveBook: 49 Games} 10. d5 {[%emt 0:03:21] B51: Sicilian: Moscow Variation (3 Bb5+) without 3...Bd7} Nd8 {[%emt 0:02:04]} 11. a4 {[%emt 0:00:21]} b6 {[%emt 0:01:49]} 12. Na3 {[%emt 0:00:38]} O-O {[%emt 0:02:55]} 13. b4 {[%emt 0:01:51]} Nb7 {[%emt 0:02:59] [#]} 14. Bb2 $146 {[%emt 0:09:02]} ({Predecessor:} 14. Bd2 g6 15. b5 a5 16. Nc4 Nh5 17. Nh2 Nd8 {1-0 (80) Ye,J (2667)-Radjabov,T (2628) Bled 2002}) 14... g6 {[%emt 0:05:17]} 15. Nc4 {[%emt 0:02:52]} b5 {[%emt 0:03:09]} 16. axb5 {[%emt 0:00:30]} axb5 {[%emt 0:00:08]} 17. Na3 {[%emt 0:00:34]} c4 {[%emt 0:00:53]} 18. Bc1 {[%emt 0:01:38]} Ra6 {[%emt 0:01:34]} 19. Rb1 {[%emt 0:09:39]} Rfa8 {[%emt 0:01:57]} 20. Nc2 {[%emt 0:00:18]} Nd8 {[%emt 0:09:50]} 21. Nh2 {[%emt 0:06:16]} Nh5 {[%emt 0:04:13]} 22. Be2 {[%emt 0:05:54]} Ng7 {[%emt 0:00:38]} 23. Ng4 {[%emt 0:03:02]} f6 {[%emt 0:03:45]} (23... f5 $15 24. Nh6+ Kh8) 24. Nh6+ {[%emt 0:01:59]} Kf8 {[%emt 0:00:29]} 25. f4 {[%emt 0:00:24]} Nf7 {[%emt 0:03:27]} 26. Nxf7 {[%emt 0:04:16]} Kxf7 {[%emt 0:00:09]} 27. Rf1 {[%emt 0:00:32]} Kg8 {[%emt 0:03:43]} 28. Be3 {[%emt 0:01:32]} f5 {[%emt 0:04:14]} 29. Bf3 {[%emt 0:05:24]} fxe4 {[%emt 0:07:02]} 30. Bxe4 {[%emt 0:00:31]} Bf5 {[%emt 0:00:48]} 31. Qf3 $1 {[%emt 0:03:48]} Rf8 {[%emt 0:07:29]} 32. fxe5 {[%emt 0:02:26]} dxe5 $11 {[%emt 0:01:25]} 33. g4 {[%emt 0:04:36]} Bxe4 {[%emt 0:05:59]} 34. Qxe4 {[%emt 0:00:13]} Ne8 {[%emt 0:00:35]} 35. Qg2 {[%emt 0:05:34]} Nf6 {[%emt 0:02:56]} 36. Bh6 {[%emt 0:01:54]} Rf7 {[%emt 0:01:47]} 37. Ne3 {[%emt 0:01:10]} Bf8 {[%emt 0:00:19]} 38. Bxf8 {[%emt 0:01:26]} Rxf8 {[%emt 0:00:42]} 39. Rbe1 {[%emt 0:02:29]} Qd6 {[%emt 0:00:59]} 40. g5 {[%emt 0:00:00]} Nh5 {[%emt 0:00:34]} 41. Rxf8+ {[%emt 0:04:59]} Kxf8 {[%emt 0:03:51]} 42. Qf2+ {[%emt 0:05:08]} Kg7 {[%emt 0:10:21]} 43. Ng2 {[%emt 0:13:50]} Qxd5 {[%emt 0:04:52]} 44. Qe3 {[%emt 0:00:29]} Ra2 {[%emt 0:02:26]} 45. Qxe5+ {[%emt 0:00:33]} Qxe5 {[%emt 0:00:06]} 46. Rxe5 {[%emt 0:00:05]} Rc2 {[%emt 0:00:32]} 1/2-1/2

[Event "ROU-ch Men 2018"]
[Site "Olanesti"]
[Date "2018.05.17"]
[Round "4"]
[White "Posedaru, Bogdan"]
[Black "Toma, Mihail"]
[Result "1-0"]
[ECO "A65"]
[WhiteElo "2307"]
[BlackElo "1835"]
[Annotator "NA"]
[PlyCount "65"]
[EventDate "2018.??.??"]
[EventType "swiss"]
[EventCountry "ROU"]
[SourceTitle "playchess.com"]
[Source "ChessBase"]
[SourceQuality "1"]
[TimeControl "40/5400+30:1800+30"]

1. d4 {[%emt 0:00:00]} Nf6 {[%emt 0:00:19]} 2. c4 {[%emt 0:00:00]} c5 {[%emt 0:00:52]} 3. d5 {[%emt 0:00:00]} e6 {[%emt 0:00:14]} 4. Nc3 {[%emt 0:00:00]} exd5 {[%emt 0:00:07]} 5. cxd5 {[%emt 0:00:00]} d6 {[%emt 0:00:02]} 6. e4 {[%emt 0:00:00]} g6 {[%emt 0:00:16]} 7. Nge2 {[%emt 0:00:04]} Bg7 {[%emt 0:01:46]} 8. Ng3 {[%emt 0:00:05]} O-O {[%emt 0:01:25]} 9. Be2 {[%emt 0:00:05]} b6 {[%emt 0:04:49]} 10. a4 {[%emt 0:01:25] A65: Modern Benoni: 6 e4} a5 $146 {[%emt 0:04:49]} ({Predecessor:} 10... Ba6 11. Nb5 h5 12. f3 h4 13. Nf1 Bxb5 14. axb5 Nbd7 15. Bg5 h3 16. g4 Qe8 17. Ng3 Qe5 {½-½ (55) Adianto,U (2535)-Benjamin,J (2620) Philadelphia 1994}) 11. O-O {[%emt 0:02:45]} Ba6 {[%emt 0:00:58]} 12. Nb5 {[%emt 0:08:17]} Bxb5 {[%emt 0:00:20]} 13. Bxb5 {[%emt 0:00:37]} Na6 {[%emt 0:01:04]} 14. Bg5 {[%emt 0:03:07]} h6 {[%emt 0:05:26]} 15. Bd2 {[%emt 0:01:04]} Nb4 {[%emt 0:00:51]} 16. Bc3 {[%emt 0:00:37]} Ra7 {[%emt 0:05:51]} 17. Qd2 {[%emt 0:11:57]} h5 {[%emt 0:05:08]} 18. f3 {[%emt 0:01:24]} Kh7 {[%emt 0:03:05]} 19. b3 {[%emt 0:05:30]} h4 {[%emt 0:02:58]} 20. Ne2 {[%emt 0:03:21]} Nh5 {[%emt 0:04:23]} 21. g4 {[%emt 0:04:53]} hxg3 {[%emt 0:00:50]} 22. hxg3 {[%emt 0:00:15]} Bxc3 {[%emt 0:04:55]} 23. Qxc3 {[%emt 0:00:19]} Qf6 {[%emt 0:04:31]} 24. Qd2 {[%emt 0:01:01]} (24. Kf2 $16) 24... Rh8 {[%emt 0:06:52]} 25. Kg2 {[%emt 0:04:29]} g5 {[%emt 0:05:07]} 26. Rh1 {[%emt 0:06:08]} Kg6 $2 {[%emt 0:01:39]} (26... Kg7 $16 {was necessary.} 27. Raf1 Qe5) 27. Rae1 {[%emt 0:06:46]} (27. g4 $18) 27... Rh7 $2 {[%emt 0:09:35]} (27... Rh6 $16 28. Ref1 Qe5) 28. e5 {[%emt 0:13:51]} Qxe5 {[%emt 0:05:19]} 29. g4 $18 {[%emt 0:05:16]} Nf4+ {[%emt 0:01:11]} 30. Nxf4+ {[%emt 0:00:06]} Qxf4 {[%emt 0:00:18]} 31. Bd3+ {[%emt 0:00:47]} Nxd3 {[%emt 0:02:56]} 32. Qxd3+ {[%emt 0:00:04]} f5 {[%emt 0:00:02]} 33. gxf5+ {[%emt 0:00:32]} 1-0

[Event "ROU-ch Men 2018"]
[Site "Olanesti"]
[Date "2018.05.17"]
[Round "4"]
[White "Pisu, Robert-Daniel"]
[Black "Manea, Alexandru"]
[Result "1-0"]
[ECO "A41"]
[WhiteElo "2254"]
[BlackElo "2402"]
[Annotator "NA"]
[PlyCount "85"]
[EventDate "2018.??.??"]
[EventType "swiss"]
[EventCountry "ROU"]
[SourceTitle "playchess.com"]
[Source "ChessBase"]
[SourceQuality "1"]
[TimeControl "40/5400+30:1800+30"]

1. d4 {[%emt 0:00:00]} d6 {[%emt 0:10:20]} 2. Nf3 {[%emt 0:00:00]} Bg4 {[%emt 0:00:08]} 3. e4 {[%emt 0:00:32]} c6 {[%emt 0:00:07]} 4. h3 {[%emt 0:03:11]} Bh5 {[%emt 0:00:11] B12: Caro-Kann: Advance Variation} 5. Nc3 {[%emt 0:00:24]} Nd7 {[%emt 0:00:09]} 6. Qe2 {[%emt 0:03:43]} e5 {[%emt 0:01:00]} 7. g4 {[%emt 0:00:15]} Bg6 {[%emt 0:00:06] LiveBook: 5 Games} 8. h4 {[%emt 0:03:05]} (8. Bg2 Be7 9. h4 h6 10. Bd2 Ngf6 11. Bh3 Qb6 12. dxe5 dxe5 {1-0 (30) Riazantsev,A (2671)-Plat,V (2532) Tallinn 2016}) 8... h6 {[%emt 0:02:02]} 9. dxe5 {[%emt 0:10:56]} dxe5 {[%emt 0:03:34]} 10. h5 {[%emt 0:17:34]} Bh7 {[%emt 0:00:06]} 11. Nh4 $146 {[%emt 0:00:05]} (11. Bd2 $16) ({Predecessor:} 11. g5 hxg5 12. Bxg5 {½-½ (38) Royer,S (2242)-Caposciutti,M (2353) Clichy 2002}) 11... Qb6 {[%emt 0:03:19]} 12. Bd2 {[%emt 0:07:51]} Qxb2 {[%emt 0:26:49]} 13. Rb1 {[%emt 0:00:31]} Qxc2 {[%emt 0:00:16]} 14. Ng2 {[%emt 0:04:43]} Ngf6 {[%emt 0:25:43]} 15. Ne3 {[%emt 0:00:42]} Qxb1+ {[%emt 0:00:02]} 16. Nxb1 {[%emt 0:00:05]} Bxe4 {[%emt 0:00:03]} 17. Bg2 $1 {[%emt 0:04:57]} Bxb1 {[%emt 0:00:08]} 18. Bc3 {[%emt 0:20:47]} Nc5 $11 {[%emt 0:02:51]} 19. Nc2 {[%emt 0:05:02]} Bxc2 {[%emt 0:09:12]} 20. Qxc2 {[%emt 0:00:05]} Bd6 {[%emt 0:00:06]} 21. Bxe5 {[%emt 0:02:58]} Bxe5 {[%emt 0:01:31]} 22. Qxc5 {[%emt 0:00:05]} O-O-O {[%emt 0:06:08]} 23. O-O {[%emt 0:00:36]} Bd4 {[%emt 0:02:56]} 24. Qf5+ {[%emt 0:02:06]} Kb8 {[%emt 0:01:57]} 25. Rb1 {[%emt 0:00:08]} Bb6 {[%emt 0:02:05]} 26. a4 {[%emt 0:00:22]} Nd5 {[%emt 0:00:35]} 27. Bxd5 {[%emt 0:03:32]} Rxd5 {[%emt 0:01:02]} 28. Qxf7 {[%emt 0:00:13]} Rhd8 {[%emt 0:00:09]} 29. Qxg7 {[%emt 0:03:46]} Rg5 {[%emt 0:00:10]} 30. Qxh6 {[%emt 0:00:55]} Rxg4+ {[%emt 0:00:15]} 31. Kf1 {[%emt 0:00:14]} Rxa4 {[%emt 0:00:50]} 32. Qf6 {[%emt 0:01:30]} Ra2 {[%emt 0:01:55]} 33. Rxb6 {[%emt 0:02:22]} Rd1+ {[%emt 0:00:01]} 34. Kg2 {[%emt 0:00:05]} axb6 {[%emt 0:00:02]} 35. Qf8+ {[%emt 0:00:40]} Ka7 {[%emt 0:00:02]} 36. h6 {[%emt 0:00:10]} Raa1 {[%emt 0:01:52]} 37. h7 {[%emt 0:00:23]} Rg1+ {[%emt 0:00:02]} 38. Kf3 {[%emt 0:00:07]} Rh1 {[%emt 0:01:02]} 39. h8=Q {[%emt 0:00:06]} Rxh8 {[%emt 0:00:04]} 40. Qxh8 {[%emt 0:00:00]} Ra3+ {[%emt 0:00:04]} 41. Kg4 {[%emt 0:01:50]} c5 {[%emt 0:00:26]} 42. f4 {[%emt 0:00:56]} c4 {[%emt 0:00:01]} 43. Qd4 {[%emt 0:00:28]} 1-0

[Event "ROU-ch Men 2018"]
[Site "Olanesti"]
[Date "2018.05.17"]
[Round "4"]
[White "Rusan, Paul-Cristian"]
[Black "Iustin, Silviu"]
[Result "0-1"]
[ECO "A08"]
[WhiteElo "2213"]
[BlackElo "1962"]
[Annotator "NA"]
[PlyCount "120"]
[EventDate "2018.??.??"]
[EventType "swiss"]
[EventCountry "ROU"]
[SourceTitle "playchess.com"]
[Source "ChessBase"]
[SourceQuality "1"]
[TimeControl "40/5400+30:1800+30"]

1. e4 {[%emt 0:00:00]} e6 {[%emt 0:00:16]} 2. d3 {[%emt 0:00:00]} d5 {[%emt 0:00:18]} 3. Nd2 {[%emt 0:00:00]} c5 {[%emt 0:00:11]} 4. Ngf3 {[%emt 0:00:07]} Nc6 {[%emt 0:00:12]} 5. g3 {[%emt 0:00:17]} Nf6 {[%emt 0:00:33]} 6. Bg2 {[%emt 0:00:14]} Be7 {[%emt 0:00:11]} 7. O-O {[%emt 0:00:09]} O-O {[%emt 0:03:28]} 8. Re1 {[%emt 0:00:41]} Qc7 {[%emt 0:00:57]} 9. Qe2 {[%emt 0:02:11]} b5 {[%emt 0:03:09]} 10. e5 {[%emt 0:01:33]} Nd7 {[%emt 0:00:08]} 11. h4 {[%emt 0:00:29]} Bb7 {[%emt 0:00:19]} 12. c3 {[%emt 0:01:18] LiveBook: 8 Games} Rfc8 {[%emt 0:01:00] C00: French: Unusual White 2nd moves} 13. Nf1 {[%emt 0:02:04]} Qd8 $146 {[%emt 0:00:46]} ({Predecessor:} 13... a5 14. Bf4 h6 15. Qd2 Bf8 16. g4 d4 17. g5 hxg5 18. Nxg5 Be7 19. Ng3 Bxg5 20. hxg5 {1-0 (33) Strikovic,A (2506)-Romano,L (2052) Porto 2016}) 14. N1h2 {[%emt 0:04:28]} Qf8 {[%emt 0:00:43]} 15. Ng4 {[%emt 0:00:38]} c4 {[%emt 0:02:53]} 16. d4 {[%emt 0:00:30]} b4 {[%emt 0:00:24]} 17. h5 {[%emt 0:02:44]} h6 {[%emt 0:00:37]} 18. Bf4 {[%emt 0:02:08]} Rcb8 {[%emt 0:02:26]} 19. Qd2 {[%emt 0:03:30]} Kh7 {[%emt 0:03:08]} 20. Nfh2 {[%emt 0:08:58]} a5 {[%emt 0:06:26]} 21. Bf3 {[%emt 0:11:25]} a4 {[%emt 0:02:29]} 22. a3 {[%emt 0:06:18]} bxa3 {[%emt 0:00:59]} 23. bxa3 {[%emt 0:01:15]} Na5 {[%emt 0:01:34]} ({Black should play} 23... Na7 $15) 24. Ra2 $1 {[%emt 0:08:52]} Bc6 {[%emt 0:05:18]} 25. Bd1 {[%emt 0:00:45]} Ra7 {[%emt 0:07:48]} 26. Bc2+ {[%emt 0:02:56]} Kh8 {[%emt 0:00:21]} 27. Nf3 {[%emt 0:15:53]} Rab7 {[%emt 0:08:57]} ({Don't play} 27... Bxa3 $6 {[#]} 28. Nxh6 $1 {[%mdl 512]} gxh6 29. Bxh6 $11) 28. Nxh6 $1 {[%emt 0:03:44]} gxh6 $16 {[%emt 0:05:04]} (28... Rb2 $142 29. Rxb2 Rxb2) 29. Bxh6 {[%emt 0:00:09]} Qg8 {[%emt 0:00:30]} 30. Bg5 {[%emt 0:01:14]} Bxg5 {[%emt 0:10:03]} 31. Nxg5 {[%emt 0:00:41]} Qg7 {[%emt 0:03:09]} 32. h6 {[%emt 0:10:39]} Qg8 {[%emt 0:01:45]} 33. Qf4 {[%emt 0:00:41]} Rf8 {[%emt 0:08:23]} 34. Re3 {[%emt 0:06:58]} f6 {[%emt 0:06:09]} 35. exf6 {[%emt 0:01:11]} Rxf6 {[%emt 0:00:10]} 36. Qh4 {[%emt 0:00:54]} Nf8 {[%emt 0:01:56]} 37. Nxe6 {[%emt 0:01:52]} Rxe6 {[%emt 0:01:30]} 38. Rxe6 {[%emt 0:00:20]} Qxe6 {[%emt 0:00:11]} 39. Qd8 {[%emt 0:00:10]} Rf7 {[%emt 0:07:33]} 40. Kg2 {[%emt 0:00:00]} Qf6 {[%emt 0:00:52]} 41. Qxf6+ {[%emt 0:04:32]} Rxf6 {[%emt 0:00:07]} 42. Bd1 {[%emt 0:00:28]} Rxh6 {[%emt 0:00:24]} 43. Bg4 {[%emt 0:00:21]} Kg7 {[%emt 0:00:41]} 44. Re2 {[%emt 0:00:07]} Kf7 {[%emt 0:00:08]} 45. Re5 {[%emt 0:00:28]} Nb3 {[%emt 0:01:50]} 46. Bh5+ {[%emt 0:01:05]} Kg8 {[%emt 0:01:37]} 47. Rg5+ {[%emt 0:00:50]} Kh8 {[%emt 0:01:16]} 48. Bf7 {[%emt 0:00:05]} Rf6 {[%emt 0:05:35]} 49. Bxd5 {[%emt 0:02:01]} Bxd5+ {[%emt 0:01:06]} 50. Rxd5 {[%emt 0:00:03]} Kg7 {[%emt 0:00:32]} 51. f4 {[%emt 0:00:30]} Ra6 {[%emt 0:00:57]} 52. g4 {[%emt 0:00:37]} Nd2 {[%emt 0:00:17]} 53. Rc5 {[%emt 0:00:50]} Nb1 {[%emt 0:00:17]} 54. Rxc4 {[%emt 0:00:28]} Nxa3 {[%emt 0:00:06]} 55. Rc7+ {[%emt 0:00:14]} Kg8 {[%emt 0:00:06]} 56. Rb7 {[%emt 0:04:37]} Nc4 {[%emt 0:00:23]} 57. Rb1 {[%emt 0:00:25]} a3 {[%emt 0:00:09]} 58. Ra1 {[%emt 0:00:30]} a2 {[%emt 0:00:07]} 59. f5 {[%emt 0:00:24]} Nd2 {[%emt 0:00:21]} 60. Kg3 {[%emt 0:00:22]} Nb3 {[%emt 0:00:13]} 0-1

[Event "ROU-ch Men 2018"]
[Site "Olanesti"]
[Date "2018.05.17"]
[Round "4"]
[White "Ciorgovean, Iustin"]
[Black "Stanciu, Alexandru-Ovidiu"]
[Result "0-1"]
[ECO "A34"]
[WhiteElo "2169"]
[BlackElo "2363"]
[Annotator "NA"]
[PlyCount "127"]
[EventDate "2018.??.??"]
[EventType "swiss"]
[EventCountry "ROU"]
[SourceTitle "playchess.com"]
[Source "ChessBase"]
[SourceQuality "1"]
[TimeControl "40/5400+30:1800+30"]

1. Nf3 {[%emt 0:00:00]} c5 {[%emt 0:06:19]} 2. c4 {[%emt 0:00:00]} Nf6 {[%emt 0:00:10]} 3. Nc3 {[%emt 0:00:00]} d5 {[%emt 0:02:58]} 4. cxd5 {[%emt 0:02:00]} Nxd5 {[%emt 0:00:18]} 5. e4 {[%emt 0:06:12]} Nb4 {[%emt 0:02:17]} 6. Bb5+ {[%emt 0:00:43]} N8c6 {[%emt 0:03:19]} 7. d4 {[%emt 0:03:04]} cxd4 {[%emt 0:00:39]} 8. a3 {[%emt 0:00:50]} dxc3 {[%emt 0:03:43]} 9. Qxd8+ $1 {[%emt 0:00:23]} Kxd8 {[%emt 0:00:04]} 10. axb4 {[%emt 0:00:17]} cxb2 {[%emt 0:16:49]} (10... Nxb4 11. Ra4) 11. Bxb2 {[%emt 0:00:05]} f6 {[%emt 0:00:04] LiveBook: 21 Games} 12. e5 {[%emt 0:08:55]} f5 {[%emt 0:06:47] [#]} 13. Nd4 {[%emt 0:27:10]} ({White should try} 13. Ng5 $1 $16 Rg8 14. Nxh7) 13... Nxe5 {[%emt 0:16:16] [#]} 14. Nxf5 $1 {[%emt 0:05:19]} Nc6 {[%emt 0:13:07]} 15. Nxg7 {[%emt 0:20:42]} ({White should try} 15. Nh6 $16 Be6 16. O-O) 15... Rg8 {[%emt 0:02:10]} 16. Bxc6 {[%emt 0:02:54]} bxc6 $11 {[%emt 0:00:56]} 17. Nh5 {[%emt 0:01:23]} Rxg2 {[%emt 0:14:18]} 18. Rd1+ {[%emt 0:04:50]} Ke8 {[%emt 0:00:08]} 19. Ng3 {[%emt 0:00:33]} Ba6 {[%emt 0:03:13]} 20. Bd4 {[%emt 0:08:28]} Bc4 {[%emt 0:02:25]} 21. Bc3 {[%emt 0:01:47]} a6 {[%emt 0:00:53]} 22. Nf5 {[%emt 0:03:15]} Rg5 {[%emt 0:01:11]} 23. Ne3 {[%emt 0:00:17]} Bb5 {[%emt 0:00:57]} 24. Kd2 {[%emt 0:00:38]} Rd8+ {[%emt 0:00:10]} 25. Kc1 {[%emt 0:00:05]} Rxd1+ {[%emt 0:00:53]} 26. Kxd1 {[%emt 0:01:02]} e6 {[%emt 0:00:33]} 27. h4 {[%emt 0:00:23]} Rg6 {[%emt 0:01:29]} 28. Kc2 {[%emt 0:00:43]} h5 {[%emt 0:00:19]} 29. Kb3 {[%emt 0:00:26]} Be7 {[%emt 0:00:23]} 30. Be5 {[%emt 0:00:30]} Kf7 {[%emt 0:01:01]} 31. Bg3 {[%emt 0:00:37]} c5 {[%emt 0:00:37]} 32. bxc5 {[%emt 0:00:14]} Bxc5 {[%emt 0:00:02]} 33. Nc4 {[%emt 0:00:28]} Kf6 {[%emt 0:00:35]} 34. Rc1 {[%emt 0:00:30]} Rg4 {[%emt 0:00:24]} 35. Rc2 {[%emt 0:01:58]} Re4 {[%emt 0:01:11]} 36. Rc1 {[%emt 0:00:45]} Be7 {[%emt 0:00:39]} 37. Rc2 {[%emt 0:00:32]} e5 {[%emt 0:01:00]} 38. f3 {[%emt 0:00:27]} Rxc4 {[%emt 0:00:05]} 39. Rxc4 {[%emt 0:00:07]} Bxc4+ {[%emt 0:00:03]} 40. Kxc4 {[%emt 0:00:00]} a5 {[%emt 0:00:40]} 41. Kb5 {[%emt 0:08:53]} Bb4 {[%emt 0:00:57]} 42. Ka4 {[%emt 0:00:39]} Kf5 {[%emt 0:03:20]} 43. Kb5 {[%emt 0:00:09]} Bc3 {[%emt 0:00:50]} 44. Kc4 {[%emt 0:00:20]} Bd2 {[%emt 0:00:27]} 45. Kb5 {[%emt 0:00:12]} Ke6 {[%emt 0:00:10]} 46. Bf2 {[%emt 0:00:49]} Kd5 {[%emt 0:01:59]} 47. Bb6 {[%emt 0:00:37]} Be1 {[%emt 0:00:26]} 48. Bd8 {[%emt 0:04:21]} Kd4 {[%emt 0:03:12]} 49. Bf6 {[%emt 0:00:25]} Ke3 {[%emt 0:00:04]} 50. Bxe5 {[%emt 0:00:05]} Kxf3 {[%emt 0:00:03]} 51. Bf6 {[%emt 0:00:35]} Kf4 {[%emt 0:00:17]} 52. Be7 {[%emt 0:00:23]} Kg3 {[%emt 0:00:18]} 53. Bf6 {[%emt 0:00:20]} Kh3 {[%emt 0:00:05]} 54. Bd8 {[%emt 0:00:18]} Kg4 {[%emt 0:00:05]} 55. Ka4 {[%emt 0:00:37]} Bxh4 {[%emt 0:00:05]} 56. Bxa5 {[%emt 0:00:03]} Bg3 {[%emt 0:00:06]} 57. Bd8 {[%emt 0:00:05]} Bf4 {[%emt 0:00:03]} 58. Kb3 {[%emt 0:00:30]} Bg5 {[%emt 0:00:04]} 59. Bc7 {[%emt 0:00:55]} h4 {[%emt 0:00:06]} 60. Kc2 {[%emt 0:00:13]} Bf4 {[%emt 0:00:13]} 61. Bb6 {[%emt 0:00:42]} h3 {[%emt 0:00:14]} 62. Bg1 {[%emt 0:00:16]} Kf3 {[%emt 0:00:03]} 63. Kd3 {[%emt 0:01:46]} Kg2 {[%emt 0:00:06]} 64. Kd4 0-1